[Event "Live Chess"]
[Site "Chess.com"]
[Date "2024.06.02"]
[Round "-"]
[White "Step-S"]
[Black "silunn"]
[Result "0-1"]
[WhiteElo "1281"]
[BlackElo "2090"]
[TimeControl "300"]
[EndTime "7:35:01 PDT"]
[Termination "silunn won on time"]

1. e4 {[%clk 0:04:57.4]} 1... e6 {[%clk 0:04:59.9]} 2. b3 {[%clk 0:04:55.9]}
2... d5 {[%clk 0:04:59.6]} 3. exd5 {[%clk 0:04:54.1]} 3... exd5 {[%clk
0:04:58.9]} 4. Bb2 {[%clk 0:04:53.4]} 4... Nf6 {[%clk 0:04:58.3]} 5. Be2 {[%clk
0:04:50.9]} 5... Bd6 {[%clk 0:04:54.7]} 6. Nf3 {[%clk 0:04:44.2]} 6... Bg4
{[%clk 0:04:51.6]} 7. h3 {[%clk 0:04:42.2]} 7... Bh5 {[%clk 0:04:50.5]} 8. g4
{[%clk 0:04:38.6]} 8... Bg6 {[%clk 0:04:49.4]} 9. Nc3 {[%clk 0:04:32.8]} 9... c6
{[%clk 0:04:47.2]} 10. d3 {[%clk 0:04:24.4]} 10... h5 {[%clk 0:04:42.1]} 11. g5
{[%clk 0:04:16.5]} 11... Nh7 {[%clk 0:04:41.2]} 12. h4 {[%clk 0:04:15.2]} 12...
Nd7 {[%clk 0:04:37.9]} 13. Qd2 {[%clk 0:04:13.8]} 13... Qc7 {[%clk 0:04:32.7]}
14. O-O-O {[%clk 0:04:08.5]} 14... Bf4 {[%clk 0:04:31.3]} 15. Rhe1 {[%clk
0:03:41.6]} 15... Bxd2+ {[%clk 0:04:16.9]} 16. Nxd2 {[%clk 0:03:40.2]} 16... O-O
{[%clk 0:04:12.6]} 17. f3 {[%clk 0:03:20.3]} 17... Nc5 {[%clk 0:04:09.7]} 18.
Rf1 {[%clk 0:03:16.7]} 18... Rfe8 {[%clk 0:04:06.6]} 19. Rde1 {[%clk 0:03:11.5]}
19... Qf4 {[%clk 0:03:56.5]} 20. Kd1 {[%clk 0:02:56.9]} 20... Re3 {[%clk
0:03:48.7]} 21. Bc1 {[%clk 0:02:45.8]} 21... Qxh4 {[%clk 0:03:41.6]} 22. Rh1
{[%clk 0:02:40]} 22... Qb4 {[%clk 0:03:34.7]} 23. Ncb1 {[%clk 0:02:19.7]} 23...
Rae8 {[%clk 0:03:30.1]} 24. Nf1 {[%clk 0:02:13.3]} 24... Rxf3 {[%clk 0:03:17.2]}
25. Bd2 {[%clk 0:02:08]} 25... Qg4 {[%clk 0:03:00.2]} 26. Nh2 {[%clk 0:01:56.7]}
26... Qd7 {[%clk 0:02:07.1]} 27. Nxf3 {[%clk 0:01:51.1]} 27... Ne6 {[%clk
0:02:04.2]} 28. Nh4 {[%clk 0:01:42.7]} 28... Nhxg5 {[%clk 0:01:59.2]} 29. Nxg6
{[%clk 0:01:36.5]} 29... fxg6 {[%clk 0:01:59.1]} 30. Nc3 {[%clk 0:01:23.9]}
30... Rf8 {[%clk 0:01:54]} 31. Rh2 {[%clk 0:01:08.5]} 31... Nf3 {[%clk 0:01:50]}
32. Bxf3 {[%clk 0:01:05.5]} 32... Rxf3 {[%clk 0:01:49.9]} 33. Rg1 {[%clk
0:00:53.4]} 33... Nf8 {[%clk 0:01:44.3]} 34. Kc1 {[%clk 0:00:40.2]} 34... Qf5
{[%clk 0:01:40.3]} 35. Kb2 {[%clk 0:00:33.6]} 35... Rf2 {[%clk 0:01:36.6]} 36.
Rxf2 {[%clk 0:00:21]} 36... Qxf2 {[%clk 0:01:36.5]} 37. Re1 {[%clk 0:00:18]}
37... Qxd2 {[%clk 0:01:33.2]} 38. Re8 {[%clk 0:00:15.1]} 38... Kf7 {[%clk
0:01:31.5]} 39. Rb8 {[%clk 0:00:12]} 39... Qf2 {[%clk 0:01:26.7]} 40. Rxb7+
{[%clk 0:00:09.1]} 40... Kf6 {[%clk 0:01:26]} 41. Rxa7 {[%clk 0:00:07.2]} 41...
Qxa7 {[%clk 0:01:24.2]} 0-1

[Event "Live Chess"]
[Site "Chess.com"]
[Date "2024.06.02"]
[Round "-"]
[White "JohanKjeldahl"]
[Black "Kyrylo7770"]
[Result "1-0"]
[WhiteElo "1798"]
[BlackElo "1649"]
[TimeControl "300"]
[EndTime "7:35:13 PDT"]
[Termination "JohanKjeldahl won by checkmate"]

1. e4 {[%clk 0:04:57.6]} 1... c6 {[%clk 0:04:59.2]} 2. d4 {[%clk 0:04:55.2]}
2... d5 {[%clk 0:04:58.8]} 3. Nc3 {[%clk 0:04:54.2]} 3... Nf6 {[%clk 0:04:58.5]}
4. e5 {[%clk 0:04:52.5]} 4... Ng8 {[%clk 0:04:57.2]} 5. Bd3 {[%clk 0:04:51.1]}
5... h5 {[%clk 0:04:52.6]} 6. f4 {[%clk 0:04:50]} 6... Bg4 {[%clk 0:04:51.8]} 7.
Nf3 {[%clk 0:04:48.6]} 7... e6 {[%clk 0:04:50.5]} 8. O-O {[%clk 0:04:47.1]} 8...
Be7 {[%clk 0:04:49.9]} 9. Be3 {[%clk 0:04:45.5]} 9... Nh6 {[%clk 0:04:45.7]} 10.
h3 {[%clk 0:04:36.1]} 10... Bf5 {[%clk 0:04:44.1]} 11. Ne2 {[%clk 0:04:29.5]}
11... Bxd3 {[%clk 0:04:43.3]} 12. Qxd3 {[%clk 0:04:27.4]} 12... Nf5 {[%clk
0:04:43]} 13. Bf2 {[%clk 0:04:24.6]} 13... Nd7 {[%clk 0:04:38.6]} 14. b3 {[%clk
0:04:20.9]} 14... Nb6 {[%clk 0:04:37.7]} 15. c4 {[%clk 0:04:17.9]} 15... Bh4
{[%clk 0:04:35.6]} 16. a4 {[%clk 0:04:13.2]} 16... Bxf2+ {[%clk 0:04:33.7]} 17.
Rxf2 {[%clk 0:04:10.8]} 17... g6 {[%clk 0:04:28.9]} 18. a5 {[%clk 0:04:04.3]}
18... Nd7 {[%clk 0:04:27.6]} 19. cxd5 {[%clk 0:03:57.7]} 19... cxd5 {[%clk
0:04:26.6]} 20. a6 {[%clk 0:03:51.3]} 20... b6 {[%clk 0:04:25.7]} 21. Nc3 {[%clk
0:03:48.1]} 21... Nh4 {[%clk 0:04:24.6]} 22. Nb5 {[%clk 0:03:44.2]} 22... Nxf3+
{[%clk 0:04:21.9]} 23. Qxf3 {[%clk 0:03:38.3]} 23... Qe7 {[%clk 0:04:19]} 24.
Nd6+ {[%clk 0:03:36.7]} 24... Kf8 {[%clk 0:04:17.6]} 25. Rc1 {[%clk 0:03:33]}
25... Kg7 {[%clk 0:04:16]} 26. Rc7 {[%clk 0:03:26.8]} 26... b5 {[%clk
0:04:11.2]} 27. Nxb5 {[%clk 0:03:15.7]} 27... Qb4 {[%clk 0:04:08.5]} 28. Rxd7
{[%clk 0:03:10.3]} 28... Qxb5 {[%clk 0:04:07.5]} 29. Rc7 {[%clk 0:03:05.6]}
29... Qxa6 {[%clk 0:04:06.3]} 30. Rfc2 {[%clk 0:03:01.8]} 30... Qa1+ {[%clk
0:04:05.2]} 31. Kh2 {[%clk 0:02:59.9]} 31... Qxd4 {[%clk 0:04:04.3]} 32. Qg3
{[%clk 0:02:51.7]} 32... h4 {[%clk 0:04:01.5]} 33. Qg5 {[%clk 0:02:49.9]} 33...
Rh5 {[%clk 0:03:55.6]} 34. Qf6+ {[%clk 0:02:47.6]} 34... Kh6 {[%clk 0:03:51.5]}
35. Qxf7 {[%clk 0:02:42.7]} 35... Qxf4+ {[%clk 0:03:11.4]} 36. Qxf4+ {[%clk
0:02:39.7]} 36... Rg5 {[%clk 0:03:06]} 37. Rf7 {[%clk 0:02:36.5]} 37... Rh8
{[%clk 0:03:00.8]} 38. Qxh4+ {[%clk 0:02:29.5]} 38... Rh5 {[%clk 0:02:59.4]} 39.
Qf4+ {[%clk 0:02:27]} 39... Rg5 {[%clk 0:02:57.9]} 40. h4 {[%clk 0:02:24.8]}
40... Kh5 {[%clk 0:02:37]} 41. Qxg5# {[%clk 0:02:23.1]} 1-0

[Event "Live Chess"]
[Site "Chess.com"]
[Date "2024.06.02"]
[Round "-"]
[White "LL220284LL"]
[Black "dmitro74"]
[Result "1-0"]
[WhiteElo "2467"]
[BlackElo "1746"]
[TimeControl "300"]
[EndTime "7:35:34 PDT"]
[Termination "LL220284LL won by checkmate"]

1. Nf3 {[%clk 0:04:58.7]} 1... d5 {[%clk 0:04:58.2]} 2. g3 {[%clk 0:04:57.8]}
2... c6 {[%clk 0:04:56.7]} 3. Bg2 {[%clk 0:04:57.7]} 3... Bf5 {[%clk 0:04:54.4]}
4. O-O {[%clk 0:04:56.9]} 4... Nd7 {[%clk 0:04:53]} 5. d3 {[%clk 0:04:56.3]}
5... e5 {[%clk 0:04:51.8]} 6. Nbd2 {[%clk 0:04:54.9]} 6... Ngf6 {[%clk
0:04:48.5]} 7. Qe1 {[%clk 0:04:52.9]} 7... Bc5 {[%clk 0:04:43.3]} 8. e4 {[%clk
0:04:51.4]} 8... dxe4 {[%clk 0:04:41]} 9. Nxe4 {[%clk 0:04:49.8]} 9... Nxe4
{[%clk 0:04:37.7]} 10. dxe4 {[%clk 0:04:49.7]} 10... Bg6 {[%clk 0:04:27.9]} 11.
Nh4 {[%clk 0:04:48.8]} 11... O-O {[%clk 0:04:25]} 12. a3 {[%clk 0:04:41.4]}
12... a5 {[%clk 0:04:19.7]} 13. Bd2 {[%clk 0:04:33.8]} 13... Qb6 {[%clk
0:04:12.7]} 14. b4 {[%clk 0:04:29.7]} 14... axb4 {[%clk 0:04:06.5]} 15. axb4
{[%clk 0:04:29.6]} 15... Bd4 {[%clk 0:04:03.9]} 16. c3 {[%clk 0:04:26.9]} 16...
Nf6 {[%clk 0:03:28.9]} 17. Rxa8 {[%clk 0:04:18.1]} 17... Rxa8 {[%clk 0:03:26.8]}
18. Nxg6 {[%clk 0:04:16.3]} 18... hxg6 {[%clk 0:03:20]} 19. cxd4 {[%clk
0:04:14.5]} 19... Qxd4 {[%clk 0:03:15.7]} 20. Bc3 {[%clk 0:04:13.4]} 20... Qc4
{[%clk 0:03:10.5]} 21. Bxe5 {[%clk 0:04:11]} 21... Ra2 {[%clk 0:03:05.3]} 22.
Bxf6 {[%clk 0:04:06.7]} 22... gxf6 {[%clk 0:03:01.9]} 23. Qb1 {[%clk 0:04:04.5]}
23... Rc2 {[%clk 0:02:55.2]} 24. Qa1 {[%clk 0:04:02.1]} 24... Kg7 {[%clk
0:02:52.4]} 25. e5 {[%clk 0:04:00.2]} 25... f5 {[%clk 0:02:41.3]} 26. e6+ {[%clk
0:03:56.6]} 26... f6 {[%clk 0:02:40.1]} 27. Qa7 {[%clk 0:03:51.5]} 27... Qxe6
{[%clk 0:02:29.1]} 28. Qxb7+ {[%clk 0:03:50.1]} 28... Kh6 {[%clk 0:02:27.1]} 29.
Qb8 {[%clk 0:03:46.7]} 29... Kg7 {[%clk 0:02:13.7]} 30. Qc7+ {[%clk 0:03:43.9]}
30... Kh6 {[%clk 0:02:11.5]} 31. Qf4+ {[%clk 0:03:41.6]} 31... Kg7 {[%clk
0:02:07.9]} 32. h4 {[%clk 0:03:36.1]} 32... Rc4 {[%clk 0:02:04.8]} 33. Qc7+
{[%clk 0:03:33.5]} 33... Kh6 {[%clk 0:02:02.7]} 34. Qd8 {[%clk 0:03:32.5]} 34...
Kg7 {[%clk 0:01:59.5]} 35. Rd1 {[%clk 0:03:31.5]} 35... g5 {[%clk 0:01:18.3]}
36. Rd7+ {[%clk 0:03:28.8]} 36... Kg6 {[%clk 0:01:15.6]} 37. h5+ {[%clk
0:03:26.1]} 37... Kxh5 {[%clk 0:01:12.9]} 38. Qh8+ {[%clk 0:03:24.7]} 38... Kg4
{[%clk 0:01:10.1]} 39. Qh3# {[%clk 0:03:23.4]} 1-0

[Event "Live Chess"]
[Site "Chess.com"]
[Date "2024.06.02"]
[Round "-"]
[White "Pablo_dmp"]
[Black "ACM42"]
[Result "1-0"]
[WhiteElo "1997"]
[BlackElo "2164"]
[TimeControl "300"]
[EndTime "7:35:43 PDT"]
[Termination "Pablo_dmp won by resignation"]

1. e4 {[%clk 0:04:59.9]} 1... e6 {[%clk 0:04:56.2]} 2. d4 {[%clk 0:04:57.8]}
2... d5 {[%clk 0:04:55.5]} 3. Nd2 {[%clk 0:04:57]} 3... Nf6 {[%clk 0:04:54.3]}
4. e5 {[%clk 0:04:55.8]} 4... Nfd7 {[%clk 0:04:53.6]} 5. Bd3 {[%clk 0:04:52.1]}
5... c5 {[%clk 0:04:53]} 6. c3 {[%clk 0:04:51.2]} 6... Nc6 {[%clk 0:04:52.9]} 7.
Ne2 {[%clk 0:04:49]} 7... f6 {[%clk 0:04:52]} 8. f4 {[%clk 0:04:47.9]} 8... Qb6
{[%clk 0:04:45.8]} 9. Nf3 {[%clk 0:04:42.2]} 9... Be7 {[%clk 0:04:45]} 10. O-O
{[%clk 0:04:41]} 10... fxe5 {[%clk 0:04:43.1]} 11. fxe5 {[%clk 0:04:39.9]} 11...
cxd4 {[%clk 0:04:42.2]} 12. cxd4 {[%clk 0:04:39.1]} 12... Ndxe5 {[%clk
0:04:38.6]} 13. Kh1 {[%clk 0:04:20.4]} 13... Nxd3 {[%clk 0:04:16.3]} 14. Qxd3
{[%clk 0:04:20.3]} 14... Bd7 {[%clk 0:04:15.1]} 15. Bf4 {[%clk 0:04:13.9]} 15...
O-O {[%clk 0:04:09.8]} 16. Ng5 {[%clk 0:03:56.3]} 16... Bxg5 {[%clk 0:04:06]}
17. Bxg5 {[%clk 0:03:56.2]} 17... Nb4 {[%clk 0:03:59.6]} 18. Qc3 {[%clk
0:03:47.1]} 18... a5 {[%clk 0:03:27.5]} 19. a3 {[%clk 0:03:39.6]} 19... Nc6
{[%clk 0:03:18.9]} 20. Rad1 {[%clk 0:03:35.9]} 20... Qb5 {[%clk 0:03:12.5]} 21.
Ng3 {[%clk 0:03:30.6]} 21... Qc4 {[%clk 0:03:02.4]} 22. Qe3 {[%clk 0:03:23]}
22... a4 {[%clk 0:02:41.9]} 23. Rf3 {[%clk 0:03:11.8]} 23... Rxf3 {[%clk
0:02:36.2]} 24. Qxf3 {[%clk 0:03:11.7]} 24... Rf8 {[%clk 0:02:35.2]} 25. Qh5
{[%clk 0:03:07]} 25... Nxd4 {[%clk 0:02:23.6]} 26. Qg4 {[%clk 0:03:01.3]} 26...
h6 {[%clk 0:00:25.7]} 27. Bxh6 {[%clk 0:02:59.4]} 27... Nf5 {[%clk 0:00:19.6]}
28. Qxc4 {[%clk 0:02:51.9]} 28... dxc4 {[%clk 0:00:18.4]} 29. Bf4 {[%clk
0:02:49.7]} 29... Nxg3+ {[%clk 0:00:16.7]} 30. Bxg3 {[%clk 0:02:49.6]} 30... Bc6
{[%clk 0:00:16.1]} 31. h3 {[%clk 0:02:47.3]} 31... Bd5 {[%clk 0:00:15.4]} 32.
Kh2 {[%clk 0:02:46.2]} 32... Rc8 {[%clk 0:00:14]} 33. Be5 {[%clk 0:02:45.1]}
33... b5 {[%clk 0:00:12.8]} 34. Rd4 {[%clk 0:02:43.2]} 34... Rc6 {[%clk
0:00:12]} 35. Rg4 {[%clk 0:02:40.8]} 35... Rb6 {[%clk 0:00:08.9]} 36. Rxg7+
{[%clk 0:02:39.4]} 36... Kf8 {[%clk 0:00:08.3]} 37. Rg3 {[%clk 0:02:37.6]} 37...
b4 {[%clk 0:00:07.5]} 38. axb4 {[%clk 0:02:36.5]} 38... Rxb4 {[%clk 0:00:06.6]}
39. Bd6+ {[%clk 0:02:35.9]} 39... Kf7 {[%clk 0:00:04.6]} 40. Bxb4 {[%clk
0:02:35.8]} 40... e5 {[%clk 0:00:03.6]} 41. Bc3 {[%clk 0:02:32.5]} 41... Ke6
{[%clk 0:00:03.5]} 42. Re3 {[%clk 0:02:30.7]} 42... e4 {[%clk 0:00:02.2]} 43. g4
{[%clk 0:02:28.7]} 1-0

[Event "Live Chess"]
[Site "Chess.com"]
[Date "2024.06.02"]
[Round "-"]
[White "StoreySniper"]
[Black "NeilDruggan73"]
[Result "1-0"]
[WhiteElo "2498"]
[BlackElo "1717"]
[TimeControl "300"]
[EndTime "7:35:54 PDT"]
[Termination "StoreySniper won on time"]

1. e4 {[%clk 0:04:54.7]} 1... d6 {[%clk 0:04:58.3]} 2. d4 {[%clk 0:04:53.3]}
2... e6 {[%clk 0:04:28.2]} 3. c4 {[%clk 0:04:48.8]} 3... g6 {[%clk 0:04:27.2]}
4. Nc3 {[%clk 0:04:47.6]} 4... Bg7 {[%clk 0:04:26.1]} 5. f4 {[%clk 0:04:46.6]}
5... c5 {[%clk 0:04:19.4]} 6. dxc5 {[%clk 0:04:44.3]} 6... Bxc3+ {[%clk
0:04:14.3]} 7. bxc3 {[%clk 0:04:39.8]} 7... Qa5 {[%clk 0:04:05.8]} 8. cxd6
{[%clk 0:04:28.5]} 8... Qxc3+ {[%clk 0:04:03.7]} 9. Bd2 {[%clk 0:04:27.7]} 9...
Qd4 {[%clk 0:03:58.4]} 10. e5 {[%clk 0:04:18.1]} 10... Nh6 {[%clk 0:03:52.3]}
11. Nf3 {[%clk 0:04:15.5]} 11... Qe4+ {[%clk 0:03:45.3]} 12. Be2 {[%clk
0:04:12.7]} 12... Ng4 {[%clk 0:03:38.5]} 13. Qb3 {[%clk 0:03:57.9]} 13... O-O
{[%clk 0:03:32.6]} 14. Qd3 {[%clk 0:03:52.8]} 14... Qxd3 {[%clk 0:03:27.4]} 15.
Bxd3 {[%clk 0:03:52]} 15... Nd7 {[%clk 0:03:26]} 16. h3 {[%clk 0:03:45.1]} 16...
Nc5 {[%clk 0:03:21.7]} 17. Bc2 {[%clk 0:03:44.2]} 17... Nh6 {[%clk 0:03:18.8]}
18. g4 {[%clk 0:03:40.3]} 18... Kg7 {[%clk 0:03:11.6]} 19. Bb4 {[%clk
0:03:36.2]} 19... b6 {[%clk 0:03:09.1]} 20. Nd2 {[%clk 0:03:13.5]} 20... a5
{[%clk 0:03:05.8]} 21. Bxc5 {[%clk 0:03:12.1]} 21... bxc5 {[%clk 0:03:03.9]} 22.
Rb1 {[%clk 0:03:10.7]} 22... Ra7 {[%clk 0:02:53.2]} 23. Be4 {[%clk 0:03:05.1]}
23... Rd8 {[%clk 0:02:38.9]} 24. g5 {[%clk 0:02:59.1]} 24... Nf5 {[%clk
0:02:36.6]} 25. Bxf5 {[%clk 0:02:57.4]} 25... gxf5 {[%clk 0:02:33.7]} 26. O-O
{[%clk 0:02:50.1]} 26... h6 {[%clk 0:02:29.6]} 27. h4 {[%clk 0:02:47.9]} 27...
hxg5 {[%clk 0:02:27.7]} 28. hxg5 {[%clk 0:02:46.4]} 28... Rh8 {[%clk 0:02:24.1]}
29. Kg2 {[%clk 0:02:42.2]} 29... Rh4 {[%clk 0:02:12.6]} 30. Rb3 {[%clk 0:01:28]}
30... a4 {[%clk 0:02:08.7]} 31. Rb5 {[%clk 0:01:25.1]} 31... Rb7 {[%clk
0:01:26.5]} 32. Nf3 {[%clk 0:01:11.7]} 32... Rxf4 {[%clk 0:01:21.2]} 33. Rfb1
{[%clk 0:01:06]} 33... Ra7 {[%clk 0:00:46.1]} 34. Rxc5 {[%clk 0:00:58.4]} 34...
Bb7 {[%clk 0:00:45]} 35. Rxb7 {[%clk 0:00:56.7]} 35... Rxb7 {[%clk 0:00:43.1]}
36. Rb5 {[%clk 0:00:45.3]} 36... Ra7 {[%clk 0:00:22.7]} 37. c5 {[%clk
0:00:43.3]} 37... Rc4 {[%clk 0:00:21.2]} 38. Kf2 {[%clk 0:00:34.7]} 38... Kg6
{[%clk 0:00:20.1]} 39. Ke2 {[%clk 0:00:29.5]} 39... f4 {[%clk 0:00:05.7]} 40.
Kd3 {[%clk 0:00:27.5]} 40... Rc1 {[%clk 0:00:03.9]} 41. Nd2 {[%clk 0:00:24.2]}
41... Kxg5 {[%clk 0:00:00.2]} 42. Rb4 {[%clk 0:00:23]} 1-0

[Event "Live Chess"]
[Site "Chess.com"]
[Date "2024.06.02"]
[Round "-"]
[White "E2E4colchester"]
[Black "Purple1szed"]
[Result "0-1"]
[WhiteElo "1171"]
[BlackElo "2013"]
[TimeControl "300"]
[EndTime "7:35:59 PDT"]
[Termination "Purple1szed won by checkmate"]

1. d4 {[%clk 0:04:57]} 1... d5 {[%clk 0:04:59.2]} 2. Nc3 {[%clk 0:04:56.2]} 2...
c6 {[%clk 0:04:58.9]} 3. f3 {[%clk 0:04:53.7]} 3... Nf6 {[%clk 0:04:57.7]} 4. e4
{[%clk 0:04:52.2]} 4... dxe4 {[%clk 0:04:57.6]} 5. fxe4 {[%clk 0:04:51.2]} 5...
Bg4 {[%clk 0:04:55.2]} 6. Nf3 {[%clk 0:04:50.1]} 6... Nbd7 {[%clk 0:04:53.8]} 7.
h3 {[%clk 0:04:49.2]} 7... Bxf3 {[%clk 0:04:52.2]} 8. Qxf3 {[%clk 0:04:48.1]}
8... Qc7 {[%clk 0:04:52.1]} 9. Be3 {[%clk 0:04:45.6]} 9... e5 {[%clk 0:04:51.3]}
10. O-O-O {[%clk 0:04:42.7]} 10... O-O-O {[%clk 0:04:49.5]} 11. dxe5 {[%clk
0:04:41.2]} 11... Nxe5 {[%clk 0:04:49.4]} 12. Qf5+ {[%clk 0:04:38.5]} 12... Ned7
{[%clk 0:04:42.8]} 13. Bxa7 {[%clk 0:04:21.6]} 13... Bb4 {[%clk 0:04:40.3]} 14.
Bd4 {[%clk 0:04:10.9]} 14... g6 {[%clk 0:04:27]} 15. Qf2 {[%clk 0:04:03.4]}
15... Bxc3 {[%clk 0:04:24.7]} 16. Bxc3 {[%clk 0:03:39.4]} 16... Nxe4 {[%clk
0:04:23.1]} 17. Qxf7 {[%clk 0:03:37.9]} 17... Nxc3 {[%clk 0:04:20.5]} 18. bxc3
{[%clk 0:03:34.9]} 18... Qa5 {[%clk 0:04:12.7]} 19. Qb3 {[%clk 0:03:30.9]} 19...
Nc5 {[%clk 0:04:06.5]} 20. Qb2 {[%clk 0:03:22.9]} 20... Rxd1+ {[%clk 0:04:02.9]}
21. Kxd1 {[%clk 0:03:21.3]} 21... Rd8+ {[%clk 0:04:02.6]} 22. Kc1 {[%clk
0:03:19.9]} 22... Na4 {[%clk 0:04:02]} 23. Qb4 {[%clk 0:03:13]} 23... Qg5+
{[%clk 0:03:59.8]} 24. Kb1 {[%clk 0:03:09.5]} 24... Rd1# {[%clk 0:03:59.3]} 0-1

[Event "Live Chess"]
[Site "Chess.com"]
[Date "2024.06.02"]
[Round "-"]
[White "MagnersCarlsberg2870"]
[Black "Pandreq"]
[Result "1-0"]
[WhiteElo "1774"]
[BlackElo "1236"]
[TimeControl "300"]
[EndTime "7:36:04 PDT"]
[Termination "MagnersCarlsberg2870 won by resignation"]

1. d4 {[%clk 0:04:57.9]} 1... d5 {[%clk 0:04:58.8]} 2. e4 {[%clk 0:04:54.3]}
2... c6 {[%clk 0:04:57.2]} 3. exd5 {[%clk 0:04:51.8]} 3... cxd5 {[%clk
0:04:56.1]} 4. Nc3 {[%clk 0:04:50.3]} 4... e6 {[%clk 0:04:53]} 5. Bf4 {[%clk
0:04:49]} 5... Nc6 {[%clk 0:04:51.4]} 6. Nb5 {[%clk 0:04:47.6]} 6... Qa5+ {[%clk
0:04:41.7]} 7. c3 {[%clk 0:04:45.6]} 7... Bd6 {[%clk 0:03:53.4]} 8. Nxd6+ {[%clk
0:04:40.4]} 8... Kd7 {[%clk 0:03:51.5]} 9. Nxf7 {[%clk 0:04:38.3]} 9... a6
{[%clk 0:03:45.2]} 10. Nxh8 {[%clk 0:04:37]} 10... b5 {[%clk 0:03:44.9]} 1-0

[Event "Live Chess"]
[Site "Chess.com"]
[Date "2024.06.02"]
[Round "-"]
[White "matt1979"]
[Black "ProfPoisson"]
[Result "1-0"]
[WhiteElo "1433"]
[BlackElo "1324"]
[TimeControl "300"]
[EndTime "7:36:09 PDT"]
[Termination "matt1979 won by checkmate"]

1. f4 {[%clk 0:04:58.3]} 1... e6 {[%clk 0:04:55.2]} 2. Nf3 {[%clk 0:04:56.6]}
2... f5 {[%clk 0:04:47.5]} 3. e3 {[%clk 0:04:53.2]} 3... Nf6 {[%clk 0:04:46.8]}
4. b3 {[%clk 0:04:50.1]} 4... b6 {[%clk 0:04:45.4]} 5. Bb2 {[%clk 0:04:48.9]}
5... Bb7 {[%clk 0:04:44.9]} 6. Be2 {[%clk 0:04:43.7]} 6... Bxf3 {[%clk
0:04:36.2]} 7. Bxf3 {[%clk 0:04:42.4]} 7... Ne4 {[%clk 0:04:27.3]} 8. d3 {[%clk
0:04:39.6]} 8... Qh4+ {[%clk 0:04:24.9]} 9. g3 {[%clk 0:04:32.1]} 9... Nxg3
{[%clk 0:04:23.3]} 10. hxg3 {[%clk 0:04:30.7]} 10... Qxg3+ {[%clk 0:04:20.2]}
11. Kd2 {[%clk 0:04:23.6]} 11... Qf2+ {[%clk 0:04:15.7]} 12. Qe2 {[%clk
0:04:19.1]} 12... Qxe2+ {[%clk 0:04:04.2]} 13. Kxe2 {[%clk 0:04:17.7]} 13... c6
{[%clk 0:04:02.7]} 14. Nc3 {[%clk 0:04:11.5]} 14... d5 {[%clk 0:03:57.7]} 15.
Rhg1 {[%clk 0:03:59.6]} 15... g6 {[%clk 0:03:55]} 16. Nxd5 {[%clk 0:03:56.5]}
16... cxd5 {[%clk 0:03:35.8]} 17. Bxh8 {[%clk 0:03:54.7]} 17... Nc6 {[%clk
0:03:29.9]} 18. Rh1 {[%clk 0:03:44.5]} 18... h5 {[%clk 0:03:15.8]} 19. Bxh5
{[%clk 0:03:35.4]} 19... gxh5 {[%clk 0:03:13]} 20. Rxh5 {[%clk 0:03:34.5]} 20...
Kd7 {[%clk 0:03:11.5]} 21. Rh7+ {[%clk 0:03:32.7]} 21... Kd6 {[%clk 0:03:08.2]}
22. Bb2 {[%clk 0:03:26.1]} 22... Be7 {[%clk 0:02:44.2]} 23. Rh8 {[%clk
0:03:19.6]} 23... Rxh8 {[%clk 0:02:41.3]} 24. Bxh8 {[%clk 0:03:18.5]} 24... a5
{[%clk 0:02:39.1]} 25. Rh1 {[%clk 0:03:16.2]} 25... Nb4 {[%clk 0:02:34.2]} 26.
Kd2 {[%clk 0:03:06.7]} 26... Nxa2 {[%clk 0:02:32.3]} 27. c3 {[%clk 0:02:57.6]}
27... b5 {[%clk 0:02:18]} 28. Ra1 {[%clk 0:02:54.7]} 28... Nxc3 {[%clk
0:02:12.8]} 29. Bxc3 {[%clk 0:02:51.1]} 29... b4 {[%clk 0:02:11.1]} 30. Be5+
{[%clk 0:02:49.7]} 30... Kc5 {[%clk 0:02:07.2]} 31. Rc1+ {[%clk 0:02:48.3]}
31... Kb5 {[%clk 0:02:05.5]} 32. Bd4 {[%clk 0:02:40.3]} 32... a4 {[%clk
0:02:03]} 33. bxa4+ {[%clk 0:02:39]} 33... Kxa4 {[%clk 0:02:00.9]} 34. Rb1
{[%clk 0:02:34.7]} 34... Ka3 {[%clk 0:01:58.9]} 35. Bb2+ {[%clk 0:02:25]} 35...
Ka2 {[%clk 0:01:56.3]} 36. Kc2 {[%clk 0:02:21.4]} 36... b3+ {[%clk 0:01:53]} 37.
Kc1 {[%clk 0:02:13.1]} 37... Ba3 {[%clk 0:01:22.9]} 38. Ra1# {[%clk 0:02:10.1]}
1-0

[Event "Live Chess"]
[Site "Chess.com"]
[Date "2024.06.02"]
[Round "-"]
[White "DJ_Lambton"]
[Black "missedJariChance"]
[Result "1-0"]
[WhiteElo "1822"]
[BlackElo "1380"]
[TimeControl "300"]
[EndTime "7:36:17 PDT"]
[Termination "DJ_Lambton won by resignation"]

1. c4 {[%clk 0:04:58.8]} 1... e6 {[%clk 0:04:56.2]} 2. g3 {[%clk 0:04:58.1]}
2... d5 {[%clk 0:04:52]} 3. Bg2 {[%clk 0:04:57.3]} 3... Nf6 {[%clk 0:04:50]} 4.
Nf3 {[%clk 0:04:56.6]} 4... c5 {[%clk 0:04:43.6]} 5. d4 {[%clk 0:04:49.3]} 5...
cxd4 {[%clk 0:04:41.7]} 6. cxd5 {[%clk 0:04:47.7]} 6... Nxd5 {[%clk 0:04:38.1]}
7. Nxd4 {[%clk 0:04:45.1]} 7... Bb4+ {[%clk 0:04:27.3]} 8. Bd2 {[%clk
0:04:42.9]} 8... Bxd2+ {[%clk 0:04:24.1]} 9. Qxd2 {[%clk 0:04:42.1]} 9... O-O
{[%clk 0:04:22.3]} 10. O-O {[%clk 0:04:41]} 10... Nc6 {[%clk 0:04:17.8]} 11.
Nxc6 {[%clk 0:04:39.5]} 11... bxc6 {[%clk 0:04:15.6]} 12. Nc3 {[%clk 0:04:38.7]}
12... Ba6 {[%clk 0:04:08.5]} 13. Rfe1 {[%clk 0:04:35.6]} 13... Qc7 {[%clk
0:03:31.9]} 14. e4 {[%clk 0:04:31.5]} 14... Nxc3 {[%clk 0:03:25.7]} 15. Qxc3
{[%clk 0:04:31.4]} 15... Rfd8 {[%clk 0:03:22.3]} 16. Rac1 {[%clk 0:04:30]} 16...
Rac8 {[%clk 0:03:09.9]} 17. e5 {[%clk 0:04:26.9]} 17... c5 {[%clk 0:03:08.7]}
18. b4 {[%clk 0:04:18.9]} 18... c4 {[%clk 0:03:03.7]} 19. a4 {[%clk 0:04:14.6]}
19... Bb7 {[%clk 0:02:54.2]} 20. Bxb7 {[%clk 0:04:13]} 20... Qxb7 {[%clk
0:02:53.1]} 21. Red1 {[%clk 0:04:12.4]} 21... Rxd1+ {[%clk 0:02:45.1]} 22. Rxd1
{[%clk 0:04:12.3]} 22... h6 {[%clk 0:02:42.5]} 23. Rc1 {[%clk 0:04:10.2]} 23...
Qe4 {[%clk 0:02:38.4]} 24. b5 {[%clk 0:04:08.5]} 24... Kh7 {[%clk 0:02:17.4]}
25. Qc2 {[%clk 0:04:06.8]} 25... Qxc2 {[%clk 0:02:11.4]} 26. Rxc2 {[%clk
0:04:06.7]} 26... Kg6 {[%clk 0:02:09.9]} 27. f4 {[%clk 0:04:06.1]} 27... Kf5
{[%clk 0:02:07.8]} 28. Kf2 {[%clk 0:04:05.5]} 28... g5 {[%clk 0:02:00.4]} 29.
Ke3 {[%clk 0:04:03.9]} 29... Rc5 {[%clk 0:01:51.4]} 30. Kd4 {[%clk 0:04:01.7]}
30... Rc7 {[%clk 0:01:44.8]} 31. Rxc4 {[%clk 0:03:45.1]} 31... Rxc4+ {[%clk
0:01:38.4]} 32. Kxc4 {[%clk 0:03:44.3]} 32... gxf4 {[%clk 0:01:37]} 33. gxf4
{[%clk 0:03:43.2]} 33... Kxf4 {[%clk 0:01:35.7]} 34. Kd4 {[%clk 0:03:42.7]}
34... Kf5 {[%clk 0:01:28.8]} 35. a5 {[%clk 0:03:41.6]} 35... f6 {[%clk
0:01:26.2]} 36. exf6 {[%clk 0:03:40.7]} 36... Kxf6 {[%clk 0:01:24.6]} 37. b6
{[%clk 0:03:40.3]} 37... a6 {[%clk 0:01:20.6]} 38. b7 {[%clk 0:03:39.4]} 1-0